fUSD/lending_fUSD_20241106
["ID","MTS","AMOUNT","RATE_DAILY","PERIOD"]
[341485253,1730921453422,-500.0,0.00027671,2]
[341485254,1730921453432,-500.0,0.00027671,2]
[341485255,1730921453442,-500.0,0.00027671,2]
[341485256,1730921453452,-500.0,0.00027671,2]
[341485257,1730921453461,-500.0,0.00027671,2]
[341485258,1730921453471,-500.0,0.00027671,2]
[341485259,1730921453481,-500.0,0.00027671,2]
[341485260,1730921453491,-500.0,0.00027671,2]
[341485261,1730921453501,-500.0,0.00027671,2]
[341485262,1730921453513,-500.0,0.00027671,2]
[341485263,1730921453523,-500.0,0.00027671,2]
[341485264,1730921453532,-500.0,0.00027671,2]
[341485265,1730921453542,-501.84821429,0.00027671,2]
[341485266,1730921453552,-568.03080426,0.00027671,2]
[341485267,1730921453561,-500.0,0.00027671,2]
[341485268,1730921453571,-500.0,0.00027671,2]
[341485269,1730921453580,-500.0,0.00027671,2]
[341485270,1730921453590,-2282.98,0.00027671,2]
[341485271,1730921453599,-505.67493409,0.00027671,2]
[341485272,1730921453609,-500.0,0.00027671,2]
[341485273,1730921453618,-500.0,0.00027671,2]
[341485274,1730921453627,-730.33,0.00027671,2]
[341485275,1730921453637,-500.0,0.00027671,2]
[341485276,1730921453647,-500.0,0.00027671,2]
[341485277,1730921453656,-500.0,0.00027671,2]
[341485278,1730921453666,-1075.17,0.00027671,2]
[341485279,1730921453675,-500.0,0.00027671,2]
[341485280,1730921453685,-500.0,0.00027671,2]
[341485281,1730921453695,-500.0,0.00027671,2]
[341485282,1730921453704,-1512.17,0.00027671,2]
[341485283,1730921453713,-500.0,0.00027671,2]
[341485284,1730921453723,-500.0,0.00027671,2]
[341485285,1730921453732,-500.0,0.00027671,2]
[341485286,1730921453742,-500.0,0.00027671,2]
[341485287,1730921453752,-500.0,0.00027671,2]
[341485288,1730921453764,-514.77478622,0.00027671,2]
[341485289,1730921453774,-500.0,0.00027671,2]
[341485290,1730921453860,-500.0,0.00027671,2]
[341485291,1730921453870,-500.0,0.00027671,2]
[341485292,1730921453880,-504.55535299,0.00027671,2]
[341485293,1730921453889,-500.0,0.00027671,2]
[341485294,1730921453900,-162.45523555,0.00027671,2]
[341485295,1730921453911,-500.0,0.00027671,2]
[341485296,1730921453920,-500.0,0.00027671,2]
[341485297,1730921453930,-500.0,0.00027671,2]
[341485298,1730921453939,-500.0,0.00027671,2]
[341485299,1730921453949,-521.53,0.00027671,2]
[341485300,1730921453958,-500.0,0.00027671,2]
[341485301,1730921453970,-500.0,0.00027671,2]
[341485302,1730921453981,-502.00193626,0.00027671,2]
[341485303,1730921453990,-500.0,0.00027671,2]
[341485304,1730921454001,-291.57379536,0.00027671,2]
[341485305,1730921454526,-208.42620464,0.00027671,2]
[341485306,1730921454536,-500.0,0.00027671,2]
[341485307,1730921454546,-500.0,0.00027671,2]
[341485308,1730921454556,-511.92694054,0.00027671,2]
[341485309,1730921454565,-500.0,0.00027671,2]
[341485310,1730921454575,-500.0,0.00027671,2]
[341485311,1730921454584,-525.78,0.00027671,2]
[341485312,1730921454594,-500.0,0.00027671,2]
[341485313,1730921454603,-500.0,0.00027671,2]
[341485314,1730921454612,-500.0,0.00027671,2]
[341485315,1730921454621,-501.22,0.00027671,2]
[341485316,1730921454630,-2.72685482,0.00027671,2]
[341485317,1730921454741,-497.27314518,0.00027671,2]
[341485318,1730921454752,-500.0,0.00027671,2]
[341485319,1730921454762,-500.0,0.00027671,2]
[341485320,1730921454771,-500.0,0.00027671,2]
[341485321,1730921454781,-1083.31,0.00027671,2]
[341485322,1730921454790,-273.36136007,0.00027671,2]
[341485323,1730921454802,-226.63863993,0.00027671,2]
[341485324,1730921454812,-500.0,0.00027671,2]
[341485325,1730921454821,-654.30136007,0.00027671,2]
[341485326,1730921454942,-118.06863993,0.00027671,2]
[341485327,1730921454951,-623.55,0.00027671,2]
[341485328,1730921454961,-912.55,0.00027671,2]
[341485329,1730921454974,-282.95,0.00027671,2]
[341485330,1730921454984,-551.01,0.00027671,2]
[341485331,1730921454994,-543.09,0.00027671,2]
[341485332,1730921455003,-500.0,0.00027671,2]
[341485333,1730921455015,-500.0,0.00027671,2]
[341485334,1730921455025,-500.0,0.00027671,2]
[341485335,1730921455035,-500.0,0.00027671,2]
[341485336,1730921455045,-500.0,0.00027671,2]
[341485337,1730921455055,-500.0,0.00027671,2]
[341485338,1730921455065,-500.0,0.00027671,2]
[341485339,1730921455075,-500.0,0.00027671,2]
[341485340,1730921455084,-703.72,0.00027671,2]
[341485341,1730921455094,-500.0,0.00027671,2]
[341485342,1730921455103,-572.0,0.00027671,2]
[341485343,1730921455113,-500.0,0.00027671,2]
[341485344,1730921455128,-1366.15,0.00027671,2]
[341485345,1730921455139,-500.0,0.00027671,2]
[341485346,1730921455148,-500.0,0.00027671,2]
[341485347,1730921455157,-500.0,0.00027671,2]
[341485348,1730921455167,-734.53,0.00027671,2]
[341485349,1730921455176,-500.0,0.00027671,2]
[341485350,1730921455185,-969.78,0.00027671,2]
[341485351,1730921455195,-500.0,0.00027671,2]
[341485352,1730921455205,-500.0,0.00027671,2]
[341485353,1730921455214,-500.0,0.00027671,2]
[341485354,1730921455223,-500.0,0.00027671,2]
[341485355,1730921455233,-1316.29,0.00027671,2]
[341485356,1730921455242,-1901.71,0.00027671,2]
[341485357,1730921455252,-500.0,0.00027671,2]
[341485358,1730921455262,-500.0,0.00027671,2]
[341485359,1730921455271,-797.29,0.00027671,2]
[341485360,1730921455281,-500.0,0.00027671,2]
[341485361,1730921455290,-500.0,0.00027671,2]
[341485362,1730921455299,-372.61919669,0.00027671,2]
[341485363,1730921455308,-500.0,0.00027671,2]
[341485364,1730921455318,-500.0,0.00027671,2]
[341485365,1730921455328,-500.0,0.00027671,2]
[341485366,1730921455337,-500.0,0.00027671,2]
[341485367,1730921455347,-500.0,0.00027671,2]
[341485368,1730921455357,-582.05,0.00027671,2]
[341485369,1730921455366,-500.0,0.00027671,2]
[341485370,1730921455376,-2129.44,0.00027671,2]
[341485371,1730921455386,-182.01161535,0.00027671,2]
[341485372,1730921455395,-515.69,0.00027671,2]
[341485373,1730921455406,-500.0,0.00027671,2]
[341485374,1730921455415,-500.0,0.00027671,2]
[341485375,1730921455425,-1381.56,0.00027671,2]
[341485376,1730921455434,-500.0,0.00027671,2]
[341485377,1730921455444,-500.0,0.00027671,2]
[341485378,1730921455453,-874.51,0.00027671,2]
[341485379,1730921455462,-500.0,0.00027671,2]
[341485380,1730921455473,-524.69,0.00027671,2]
[341485381,1730921455482,-1199.16,0.00027671,2]
[341485382,1730921455492,-1456.34,0.00027671,2]
[341485383,1730921455501,-500.0,0.00027671,2]
[341485384,1730921455511,-500.0,0.00027671,2]
[341485385,1730921455521,-648.55,0.00027671,2]
[341485386,1730921455530,-516.74,0.00027671,2]
[341485387,1730921455539,-500.0,0.00027671,2]
[341485388,1730921455549,-500.0,0.00027671,2]
[341485389,1730921455558,-500.0,0.00027671,2]
[341485390,1730921455568,-500.0,0.00027671,2]
[341485391,1730921455577,-500.0,0.00027671,2]
[341485392,1730921455587,-1361.75,0.00027671,2]
[341485393,1730921455597,-1297.01,0.00027671,2]
[341485394,1730921455606,-1976.54,0.00027671,2]
[341485395,1730921455616,-538.59,0.00027671,2]
[341485396,1730921455626,-1292.52,0.00027671,2]
[341485397,1730921455635,-500.0,0.00027671,2]
[341485398,1730921455644,-801.08,0.00027671,2]
[341485399,1730921455654,-596.86601639,0.00027671,2]
[341485400,1730921455663,-500.0,0.00027671,2]
[341485401,1730921455672,-1172.99,0.00027671,2]
[341485402,1730921455682,-500.0,0.00027671,2]
[341485403,1730921455692,-1204.1,0.00027671,2]
[341485404,1730921455701,-500.0,0.00027671,2]
[341485405,1730921455710,-744.85,0.00027671,2]
[341485406,1730921455719,-500.0,0.00027671,2]
[341485407,1730921455729,-1335.79,0.00027671,2]
[341485408,1730921455739,-696.64,0.00027671,2]
[341485409,1730921455749,-1045.64,0.00027671,2]
[341485410,1730921455761,-679.82,0.00027671,2]
[341485411,1730921455770,-500.0,0.00027671,2]
[341485412,1730921455779,-500.0,0.00027671,2]
[341485413,1730921455788,-500.0,0.00027671,2]
[341485414,1730921455798,-1042.62,0.00027671,2]
[341485415,1730921455807,-500.0,0.00027671,2]
[341485416,1730921455816,-500.0,0.00027671,2]
[341485417,1730921455825,-500.0,0.00027671,2]
[341485418,1730921455836,-528.32152581,0.00027671,2]
[341485419,1730921455845,-500.0,0.00027671,2]
[341485420,1730921455854,-500.0,0.00027671,2]
[341485421,1730921455864,-961.37,0.00027671,2]
[341485422,1730921455873,-500.0,0.00027671,2]
[341485423,1730921455882,-1098.93,0.00027671,2]
[341485424,1730921455892,-500.0,0.00027671,2]
[341485425,1730921455901,-632.65,0.00027671,2]
[341485426,1730921455910,-500.0,0.00027671,2]
[341485427,1730921455919,-500.0,0.00027671,2]
[341485428,1730921455929,-500.0,0.00027671,2]
[341485429,1730921455938,-500.0,0.00027671,2]
[341485430,1730921455947,-1534.21,0.00027671,2]
[341485431,1730921455956,-500.0,0.00027671,2]
[341485432,1730921455967,-500.0,0.00027671,2]
[341485433,1730921455977,-500.0,0.00027671,2]
[341485434,1730921455986,-500.0,0.00027671,2]
[341485435,1730921455995,-709.21,0.00027671,2]
[341485436,1730921456004,-500.0,0.00027671,2]
[341485437,1730921456016,-500.0,0.00027671,2]
[341485438,1730921456026,-1898.13,0.00027671,2]
[341485439,1730921456035,-500.0,0.00027671,2]
[341485440,1730921456044,-3004.62,0.00027671,2]
[341485441,1730921456053,-500.0,0.00027671,2]
[341485442,1730921456062,-500.0,0.00027671,2]
[341485443,1730921456071,-500.0,0.00027671,2]
[341485444,1730921456081,-1137.09,0.00027671,2]
[341485445,1730921456090,-500.0,0.00027671,2]
[341485446,1730921456099,-500.0,0.00027671,2]
[341485447,1730921456109,-533.84672867,0.00027671,2]
[341485448,1730921456118,-1635.44,0.00027671,2]
[341485449,1730921456127,-500.0,0.00027671,2]
[341485450,1730921456136,-671.47,0.00027671,2]
[341485451,1730921456145,-500.0,0.00027671,2]
[341485452,1730921456155,-537.18,0.00027671,2]
[341485453,1730921456164,-500.0,0.00027671,2]
[341485454,1730921456172,-500.0,0.00027671,2]
[341485455,1730921456182,-500.0,0.00027671,2]
[341485456,1730921456191,-3533.75,0.00027671,2]
[341485457,1730921456201,-500.0,0.00027671,2]
[341485458,1730921456210,-500.0,0.00027671,2]
[341485459,1730921456219,-500.0,0.00027671,2]
[341485460,1730921456228,-604.2,0.00027671,2]
[341485461,1730921456237,-500.0,0.00027671,2]
[341485462,1730921456246,-352.5,0.00027671,2]
[341485463,1730921456255,-520.44,0.00027671,2]
[341485464,1730921456266,-500.0,0.00027671,2]
[341485465,1730921456276,-2264.57,0.00027671,2]
[341485466,1730921456286,-500.0,0.00027671,2]
[341485467,1730921456296,-500.0,0.00027671,2]
[341485468,1730921456306,-500.0,0.00027671,2]
[341485469,1730921456315,-500.0,0.00027671,2]
[341485470,1730921456325,-500.0,0.00027671,2]
[341485471,1730921456334,-500.0,0.00027671,2]
[341485472,1730921456344,-500.0,0.00027671,2]
[341485473,1730921456355,-500.0,0.00027671,2]
[341485474,1730921456366,-1056.2,0.00027671,2]
[341485475,1730921456376,-500.0,0.00027671,2]
[341485476,1730921456386,-500.0,0.00027671,2]
[341485477,1730921456395,-690.86,0.00027671,2]
[341485478,1730921456405,-500.0,0.00027671,2]
[341485479,1730921456414,-500.0,0.00027671,2]
[341485480,1730921456423,-500.0,0.00027671,2]
[341485481,1730921456432,-500.0,0.00027671,2]
[341485482,1730921456442,-500.0,0.00027671,2]
[341485483,1730921456452,-500.0,0.00027671,2]
[341485484,1730921456461,-500.0,0.00027671,2]
[341485485,1730921456471,-500.0,0.00027671,2]
[341485486,1730921456481,-500.0,0.00027671,2]
[341485487,1730921456490,-500.0,0.00027671,2]
[341485488,1730921456499,-500.0,0.00027671,2]
[341485489,1730921456509,-500.0,0.00027671,2]
[341485490,1730921456521,-500.0,0.00027671,2]
[341485491,1730921456530,-707.77,0.00027671,2]
[341485492,1730921456539,-581.73274683,0.00027671,2]
[341485493,1730921456549,-628.1,0.00027671,2]
[341485494,1730921456559,-500.0,0.00027671,2]
[341485495,1730921456568,-500.0,0.00027671,2]
[341485496,1730921456578,-500.0,0.00027671,2]
[341485497,1730921456590,-2569.21,0.00027671,2]
[341485498,1730921456600,-500.0,0.00027671,2]
[341485499,1730921456609,-2185.26,0.00027671,2]
[341485500,1730921456619,-500.0,0.00027671,2]
[341485501,1730921456629,-500.0,0.00027671,2]
[341485502,1730921456638,-591.78,0.00027671,2]
[341485503,1730921456648,-677.46,0.00027671,2]
[341485504,1730921456658,-500.0,0.00027671,2]
[341485505,1730921456667,-500.0,0.00027671,2]
[341485506,1730921456678,-449.45596233,0.00027671,2]
[341485507,1730921456687,-500.0,0.00027671,2]
[341485508,1730921456697,-500.0,0.00027671,2]
[341485509,1730921456707,-500.0,0.00027671,2]
[341485510,1730921456716,-1027.91,0.00027671,2]
[341485511,1730921456726,-500.0,0.00027671,2]
[341485512,1730921456736,-500.0,0.00027671,2]
[341485513,1730921456745,-1757.89,0.00027671,2]
[341485514,1730921456755,-1116.86,0.00027671,2]
[341485515,1730921456766,-893.13,0.00027671,2]
[341485516,1730921456776,-500.0,0.00027671,2]
[341485517,1730921456785,-500.0,0.00027671,2]
[341485518,1730921456794,-500.0,0.00027671,2]
[341485519,1730921456805,-500.0,0.00027671,2]
[341485520,1730921456814,-500.0,0.00027671,2]
[341485521,1730921456824,-500.0,0.00027671,2]
[341485522,1730921456833,-500.0,0.00027671,2]
[341485523,1730921456843,-598.38,0.00027671,2]
[341485524,1730921456853,-500.0,0.00027671,2]
[341485525,1730921456863,-1020.16,0.00027671,2]
[341485526,1730921456873,-580.72,0.00027671,2]
[341485527,1730921456882,-500.0,0.00027671,2]
[341485528,1730921456892,-500.0,0.00027671,2]
[341485529,1730921456902,-1319.12,0.00027671,2]
[341485530,1730921456912,-500.0,0.00027671,2]
[341485531,1730921456922,-998.08,0.00027671,2]
[341485532,1730921456932,-10922.52,0.00027671,2]
[341485533,1730921456942,-500.0,0.00027671,2]
[341485534,1730921456952,-500.0,0.00027671,2]
[341485535,1730921456962,-704.67,0.00027671,2]
[341485536,1730921456978,-8966.14,0.00027671,2]
[341485537,1730921456987,-502.01,0.00027671,2]
[341485538,1730921456998,-510.58,0.00027671,2]
[341485539,1730921457008,-1483.21,0.00027671,2]
[341485540,1730921457022,-816.23,0.00027671,2]
[341485541,1730921457031,-500.0,0.00027671,2]
[341485542,1730921457041,-505.0,0.00027671,2]
[341485543,1730921457052,-2247.83,0.00027671,2]
[341485544,1730921457061,-500.0,0.00027671,2]
[341485545,1730921457071,-500.0,0.00027671,2]
[341485546,1730921457080,-500.0,0.00027671,2]
[341485547,1730921457089,-500.0,0.00027671,2]
[341485548,1730921457099,-500.0,0.00027671,2]
[341485549,1730921457108,-500.0,0.00027671,2]
[341485550,1730921457117,-557.05,0.00027671,2]
[341485551,1730921457127,-696.88,0.00027671,2]
[341485552,1730921457138,-743.67,0.00027671,2]
[341485553,1730921457147,-500.0,0.00027671,2]
[341485554,1730921457156,-11921.41,0.00027671,2]
[341485555,1730921457165,-3538.22,0.00027671,2]
[341485556,1730921457175,-500.0,0.00027671,2]
[341485557,1730921457184,-500.0,0.00027671,2]
[341485558,1730921457194,-685.62,0.00027671,2]
[341485559,1730921457203,-500.0,0.00027671,2]
[341485560,1730921457213,-500.0,0.00027671,2]
[341485561,1730921457222,-500.0,0.00027671,2]
[341485562,1730921457232,-500.0,0.00027671,2]
[341485563,1730921457241,-3001.37,0.00027671,2]
[341485564,1730921457251,-500.0,0.00027671,2]
[341485565,1730921457468,-500.0,0.00027671,2]
[341485566,1730921457479,-500.0,0.00027671,2]
[341485567,1730921457489,-500.0,0.00027671,2]
[341485568,1730921457499,-1287.89,0.00027671,2]
[341485569,1730921457508,-500.0,0.00027671,2]
[341485570,1730921457519,-566.0,0.00027671,2]
[341485571,1730921457529,-974.22,0.00027671,2]
[341485572,1730921457539,-657.75,0.00027671,2]
[341485573,1730921457549,-500.0,0.00027671,2]
[341485574,1730921457559,-668.16,0.00027671,2]
[341485575,1730921457568,-500.0,0.00027671,2]
[341485576,1730921457696,-557.76,0.00027671,2]
[341485577,1730921457706,-500.0,0.00027671,2]
[341485578,1730921457715,-500.0,0.00027671,2]
[341485579,1730921457725,-500.0,0.00027671,2]
[341485580,1730921457734,-558.36,0.00027671,2]
[341485581,1730921457743,-500.0,0.00027671,2]
[341485582,1730921457753,-2242.69,0.00027671,2]
[341485583,1730921457763,-2069.35,0.00027671,2]
[341485584,1730921457773,-500.0,0.00027671,2]
[341485585,1730921457782,-544.29,0.00027671,2]
[341485586,1730921457791,-2000.0,0.00027671,2]
[341485587,1730921457801,-880.83,0.00027671,2]
[341485588,1730921457810,-500.0,0.00027671,2]
[341485589,1730921457820,-1008.25,0.00027671,2]
[341485590,1730921457829,-504.78688533,0.00027671,2]
[341485591,1730921457839,-500.0,0.00027671,2]
[341485592,1730921457848,-500.0,0.00027671,2]
[341485593,1730921457858,-517.09,0.00027671,2]
[341485594,1730921457867,-500.0,0.00027671,2]
[341485595,1730921457877,-500.0,0.00027671,2]
[341485596,1730921457887,-500.0,0.00027671,2]
[341485597,1730921457897,-500.0,0.00027671,2]
[341485598,1730921457907,-500.0,0.00027671,2]
[341485599,1730921457916,-1425.33,0.00027671,2]
[341485600,1730921457926,-1109.65,0.00027671,2]
[341485601,1730921457936,-500.0,0.00027671,2]
[341485602,1730921457946,-500.0,0.00027671,2]
[341485603,1730921457956,-500.0,0.00027671,2]
[341485604,1730921457966,-2335.66,0.00027671,2]
[341485605,1730921457977,-500.0,0.00027671,2]
[341485606,1730921457987,-549.87,0.00027671,2]
[341485607,1730921457996,-1520.67,0.00027671,2]
[341485608,1730921458006,-500.0,0.00027671,2]
[341485609,1730921458017,-500.0,0.00027671,2]
[341485610,1730921458026,-500.0,0.00027671,2]
[341485611,1730921458036,-500.0,0.00027671,2]
[341485612,1730921458047,-1291.47,0.00027671,2]
[341485613,1730921458056,-500.0,0.00027671,2]
[341485614,1730921458066,-500.0,0.00027671,2]
[341485615,1730921458075,-755.97,0.00027671,2]
[341485616,1730921458085,-1268.14,0.00027671,2]
[341485617,1730921458095,-539.8,0.00027671,2]
[341485618,1730921458105,-500.0,0.00027671,2]
[341485619,1730921458114,-500.0,0.00027671,2]
[341485620,1730921458123,-500.0,0.00027671,2]
[341485621,1730921458133,-527.03413932,0.00027671,2]
[341485622,1730921458142,-500.0,0.00027671,2]
[341485623,1730921458152,-1600.42,0.00027671,2]
[341485624,1730921458162,-697.74,0.00027671,2]
[341485625,1730921458172,-500.0,0.00027671,2]
[341485626,1730921458181,-550.968658,0.00027671,2]
[341485627,1730921458191,-974.29,0.00027671,2]
[341485628,1730921458200,-1296.46,0.00027671,2]
[341485629,1730921458209,-500.0,0.00027671,2]
[341485630,1730921458219,-610.34,0.00027671,2]
[341485631,1730921458229,-2875.43,0.00027671,2]
[341485632,1730921458238,-500.0,0.00027671,2]
[341485633,1730921458248,-500.0,0.00027671,2]
[341485634,1730921458258,-500.0,0.00027671,2]
[341485635,1730921458269,-500.0,0.00027671,2]
[341485636,1730921458279,-1035.41,0.00027671,2]
[341485637,1730921458289,-500.0,0.00027671,2]
[341485638,1730921458299,-662.1,0.00027671,2]
[341485639,1730921458309,-500.0,0.00027671,2]
[341485640,1730921458319,-606.84,0.00027671,2]
[341485641,1730921458329,-683.75,0.00027671,2]
[341485642,1730921458339,-8045.66,0.00027671,2]
[341485643,1730921458349,-1000.0,0.00027671,10]
[341485644,1730921458359,-500.0,0.00027671,2]
[341485645,1730921458368,-500.0,0.00027671,2]
[341485646,1730921458378,-4032.26,0.00027671,2]
[341485647,1730921458388,-500.0,0.00027671,2]
[341485648,1730921458397,-500.0,0.00027671,2]
[341485649,1730921458407,-500.0,0.00027671,2]
[341485650,1730921458416,-512.73,0.00027671,2]
[341485651,1730921458426,-500.0,0.00027671,2]
[341485652,1730921458435,-500.0,0.00027671,2]
[341485653,1730921458444,-502.71150721,0.00027671,2]
[341485654,1730921458454,-500.0,0.00027671,2]
[341485655,1730921458463,-500.0,0.00027671,2]
[341485656,1730921458473,-544.10998925,0.00027671,2]
[341485657,1730921458482,-1468.58,0.00027671,2]
[341485658,1730921458492,-500.0,0.00027671,2]
[341485659,1730921458502,-500.0,0.00027671,2]
[341485660,1730921458512,-863.55,0.00027671,2]
[341485661,1730921458522,-500.0,0.00027671,2]
[341485662,1730921458532,-500.0,0.00027671,2]
[341485663,1730921458541,-515.3599454,0.00027671,2]
[341485664,1730921458552,-500.0,0.00027671,2]
[341485665,1730921458561,-500.0,0.00027671,2]
[341485666,1730921458572,-2446.49,0.00027671,2]
[341485667,1730921458581,-500.0,0.00027671,2]
[341485668,1730921458591,-535.62,0.00027671,2]
[341485669,1730921458602,-500.0,0.00027671,2]
[341485670,1730921458611,-714.66,0.00027671,2]
[341485671,1730921458620,-500.0,0.00027671,2]
[341485672,1730921458631,-622.96,0.00027671,2]
[341485673,1730921458640,-500.0,0.00027671,2]
[341485674,1730921458650,-556.44,0.00027671,2]
[341485675,1730921458659,-3547.51,0.00027671,2]
[341485676,1730921458669,-500.0,0.00027671,2]
[341485677,1730921458678,-2384.12,0.00027671,2]
[341485678,1730921458688,-500.0,0.00027671,2]
[341485679,1730921458697,-2870.53,0.00027671,2]
[341485680,1730921458707,-500.0,0.00027671,2]
[341485681,1730921458716,-223.40942543,0.00027671,2]
[341485682,1730921458727,-500.0,0.00027671,2]
[341485683,1730921458738,-500.0,0.00027671,2]
[341485684,1730921458748,-500.0,0.00027671,2]
[341485685,1730921458759,-1031.24,0.00027671,2]
[341485686,1730921458770,-2083.61,0.00027671,2]
[341485687,1730921458779,-500.0,0.00027671,2]
[341485688,1730921458789,-500.0,0.00027671,2]
[341485689,1730921458799,-500.0,0.00027671,2]
[341485690,1730921458808,-824.12,0.00027671,2]
[341485691,1730921458818,-500.0,0.00027671,2]
[341485692,1730921458827,-500.0,0.00027671,2]
[341485693,1730921458837,-500.0,0.00027671,2]
[341485694,1730921458846,-1486.01267546,0.00027671,2]
[341485695,1730921458871,-790.95732454,0.00027671,2]
[341485696,1730921458881,-1191.22,0.00027671,2]
[341485697,1730921458891,-1053.17369227,0.00027671,2]
[341485698,1730921458902,-237.64630773,0.00027671,2]
[341485699,1730921458911,-215.99578552,0.00027671,2]
[341485700,1730921458921,-570.29,0.00027671,2]
[341485701,1730921458931,-503.8,0.00027671,2]
[341485702,1730921458940,-500.0,0.00027671,2]
[341485703,1730921458949,-500.0,0.00027671,2]
[341485704,1730921458958,-1015.57,0.00027671,2]
[341485705,1730921458968,-1299.71,0.00027671,2]
[341485706,1730921458979,-500.0,0.00027671,2]
[341485707,1730921458988,-500.0,0.00027671,2]
[341485708,1730921458998,-500.0,0.00027671,2]
[341485709,1730921459007,-533.02,0.00027671,2]
[341485710,1730921459018,-848.03,0.00027671,2]
[341485711,1730921459027,-500.0,0.00027671,2]
[341485712,1730921459036,-6672.24,0.00027671,2]
[341485713,1730921459047,-1717.61,0.00027671,2]
[341485714,1730921459057,-150.0,0.00027671,2]
[341485715,1730921459067,-595.77,0.00027671,2]
[341485716,1730921459076,-702.7,0.00027671,2]
[341485717,1730921459086,-500.0,0.00027671,2]
[341485718,1730921459095,-500.0,0.00027671,2]
[341485719,1730921459105,-1880.18,0.00027671,2]
[341485720,1730921459114,-1638.96,0.00027671,2]
[341485721,1730921459124,-686.63,0.00027671,2]
[341485722,1730921459134,-500.0,0.00027671,2]
[341485723,1730921459143,-1342.91,0.00027671,2]
[341485724,1730921459153,-535.0461631,0.00027671,2]
[341485725,1730921459163,-692.45,0.00027671,2]
[341485726,1730921459172,-500.0,0.00027671,2]
[341485727,1730921459182,-500.0,0.00027671,2]
[341485728,1730921459191,-809.62,0.00027671,2]
[341485729,1730921459201,-789.64,0.00027671,2]
[341485730,1730921459210,-763.21,0.00027671,2]
[341485731,1730921459220,-796.81,0.00027671,2]
[341485732,1730921459229,-920.01,0.00027671,2]
[341485733,1730921459238,-500.0,0.00027671,2]
[341485734,1730921459248,-227.99574698,0.00027671,2]
[341485735,1730921459258,-705.29,0.00027671,2]
[341485736,1730921459268,-3164.8,0.00027671,2]
[341485737,1730921459278,-500.0,0.00027671,2]
[341485738,1730921459288,-500.0,0.00027671,2]
[341485739,1730921459297,-500.0,0.00027671,2]
[341485740,1730921459307,-525.61,0.00027671,2]
[341485741,1730921459317,-1016.08,0.00027671,2]
[341485742,1730921459327,-526.2025051,0.00027671,2]
[341485743,1730921459336,-500.0,0.00027671,2]
[341485744,1730921459345,-500.0,0.00027671,2]
[341485745,1730921459354,-500.0,0.00027671,2]
[341485746,1730921459364,-500.0,0.00027671,2]
[341485747,1730921459374,-500.0,0.00027671,2]
[341485748,1730921459383,-589.56,0.00027671,2]
[341485749,1730921459393,-500.0,0.00027671,2]
[341485750,1730921459402,-588.88,0.00027671,2]
[341485751,1730921459412,-2269.06,0.00027671,2]
[341485752,1730921459421,-500.0,0.00027671,2]